{"text_format":"1","workbook":"xlsx","n_sheets":1,"sheets":["List1"],"not_rendered":{"charts":0,"images":20,"macros":0,"external_links":0,"defined_names":0,"comments":0,"pivot_tables":0},"unopened":[],"bounds":{"document_bytes":16777216,"sheet_cells":100000,"rows_first":2000,"rows_last":500,"rows_between":2000,"halvings":0,"cell_chars":16384,"cell_head_chars":4096},"cells_cut":0,"cells_raw":0,"read":"whole","date_system":"1900"}

{"sheet":"List1","index":0,"n_rows":93,"n_cols":9,"rows_kept":93,"cut":false,"hidden":false,"merged":[[0,1,0,7],[92,0,92,7]]}
[null,"Měú Valašské Meziříčí ulice Zašovská 784, Krásno nad Bečvou – vybavení kanceláří"]
[]
[null,"Místnost ","Označení","Obrázek","Materiál ","Ks","Rozměry","Cena /ks","Cena celkem"]
[null,null,null,null,"Kování",null,"( š x v x h )","Kč ","Kč"]
[null,304,"A1",null,"Skříně na šanony uzamykatelná\n- DTDL H1145 St10 Dub Bardolino – síla desek 18 mm\n- Panty s tlumením a dotahem\n- Úchytky kovové matné – rozteč šroubů 128 mm\n- Nábytkový zámek – stejný klíč\n\n",3,"800 x 2000 x 400 ",null,{"$f":"F5*H5","v":0}]
[null,304,"A2",null,"Skříně rohová otevřená\n- DTDL H1145 St10 Dub Bardolino – síla desek 18 mm\n\n\n\n",1,"900/1100 x 2000 x 400",null,{"$f":"F6*H6","v":0}]
[null,304,"A3",null,"Skříně šatní uzavřená\n- DTDL H1145 St10 Dub Bardolino – síla desek 18 mm\n- Panty s tlumením a dotahem\n- Úchytky kovové matné – rozteč šroubů 128 mm",1,"500 x 2000 x 400",null,{"$f":"F7*H7","v":0}]
[null,304,"A4",null,"Police otevřená zavěšená\n- DTDL H1145 St10 Dub Bardolino – síla desek 18 mm",2,"2100 x 300 x 300",null,{"$f":"F8*H8","v":0}]
[null,304,"A5",null,"Pult otevřený\n- DTDL H1145 St10 Dub Bardolino – síla desek 18 mm",1,"2000 x 1100 x 500",null,{"$f":"F9*H9","v":0}]
[null,304,"A6",null,"Mobilní skříň na kopírku\n- DTDL H1145 St10 Dub Bardolino – síla desek 18 mm\n- Kolečka s brzdou\n- Panty s tlumením a dotahem\n- Úchytky kovové matné – rozteč šroubů 128 mm",1,"500 x 750 x 500",null,{"$f":"F10*H10","v":0}]
[null,304,"A7",null,"Mobilní uzamykatelný kontejner\n- DTDL H1145 St10 Dub Bardolino – síla desek 18 mm\n- Kolečka s brzdou\n- Systémové zásuvky kovové\n- Úchytky kovové matné – rozteč šroubů 128 mm",2,"430 x 650 x 500",null,{"$f":"F11*H11","v":0}]
[null,304,"B1",null,"Věšáková stěna\n- DTDL H1145 St10 Dub Bardolino – síla desek 18 mm\n- Kovové dvojháčky matné",1,"800 x 2000",null,{"$f":"F12*H12","v":0}]
[null,304,"S1P",null,"Rohový stůl pravý\n- DTDL H1145 St10 Dub Bardolino – síla horních desek 36 mm\n- Kovová noha rektifikační matná\n",1,"1400/2800 x 750 x 800",null,{"$f":"F13*H13","v":0}]
[null,304,"S1L",null,"Rohový stůl levý\n- DTDL H1145 St10 Dub Bardolino – síla horních desek 36 mm\n- Kovová noha rektifikační matná\n",1,"1400/2800 x 750 x 800",null,{"$f":"F14*H14","v":0}]
[null,305,"A4",null,"Police otevřená zavěšená\n- DTDL H1145 St10 Dub Bardolino – síla desek 18 mm",2,"2100 x 300 x 300",null,{"$f":"F15*H15","v":0}]
[null,305,"A6",null,"Mobilní skříň na kopírku\n- DTDL H1145 St10 Dub Bardolino – síla desek 18 mm\n- Kolečka s brzdou\n- Panty s tlumením a dotahem\n- Úchytky kovové matné – rozteč šroubů 128 mm",1,"500 x 750 x 500",null,{"$f":"F16*H16","v":0}]
[null,305,"A7",null,"Mobilní uzamykatelný kontejner\n- DTDL H1145 St10 Dub Bardolino – síla desek 18 mm\n- Kolečka s brzdou\n- Systémové zásuvky kovové\n- Úchytky kovové matné – rozteč šroubů 128 mm",2,"430 x 650 x 500",null,{"$f":"F17*H17","v":0}]
[null,305,"A8",null,"Skříně šatní uzavřená\n- DTDL H1145 St10 Dub Bardolino – síla desek 18 mm\n- Panty s tlumením a dotahem\n- Úchytky kovové matné – rozteč šroubů 128 mm",1,"800 x 2000 x 550",null,{"$f":"F18*H18","v":0}]
[null,305,"A9",null,"Skříně nízká uzavřená\n- DTDL H1145 St10 Dub Bardolino – síla desek 18 mm\n- Panty s tlumením a dotahem\n- Úchytky kovové matné – rozteč šroubů 128 mm",2,"800 x 1100 x 400 ",null,{"$f":"F19*H19","v":0}]
[null,305,"A10 ",null,"Skříně uzavřená 1/3\n- DTDL H1145 St10 Dub Bardolino – síla desek 18 mm\n- Panty s tlumením a dotahem\n- Úchytky kovové matné – rozteč šroubů 128 mm",1,"600 x 2000 x 400",null,{"$f":"F20*H20","v":0}]
[null,305,"S2L",null,"Rohový stůl levý s krycí deskou \n- DTDL H1145 St10 Dub Bardolino – síla horních desek 36 mm\n- Kovová noha rektifikační matná\n",1,"1800/2800 x 750 x 800",null,{"$f":"F21*H21","v":0}]
[null,305,"S3",null,"Stůl\n- DTDL H1145 St10 Dub Bardolino – síla horních desek 36 mm\n- Kovová noha rektifikační matná\n",1,"2800 x 750 x 800",null,{"$f":"F22*H22","v":0}]
[null,305,"S4",null,"Stůl\n- DTDL H1145 St10 Dub Bardolino – síla horních desek 36 mm\n- Kovová noha rektifikační matná\n",1,"1540 x 750 x 420",null,{"$f":"F23*H23","v":0}]
[null,308,"A1",null,"Skříně na šanony uzamykatelná\n- DTDL H1145 St10 Dub Bardolino – síla desek 18 mm\n- Panty s tlumením a dotahem\n- Úchytky kovové matné – rozteč šroubů 128 mm\n- Nábytkový zámek – stejný klíč\n\n",2,"800 x 2000 x 400 ",null,{"$f":"F24*H24","v":0}]
[null,308,"A6",null,"Mobilní skříň na kopírku\n- DTDL H1145 St10 Dub Bardolino – síla desek 18 mm\n- Kolečka s brzdou\n- Panty s tlumením a dotahem\n- Úchytky kovové matné – rozteč šroubů 128 mm",1,"500 x 750 x 500",null,{"$f":"F25*H25","v":0}]
[null,308,"A7",null,"Mobilní uzamykatelný kontejner\n- DTDL H1145 St10 Dub Bardolino – síla desek 18 mm\n- Kolečka s brzdou\n- Systémové zásuvky kovové\n- Úchytky kovové matné – rozteč šroubů 128 mm",2,"430 x 650 x 500",null,{"$f":"F26*H26","v":0}]
[null,308,"A11",null,"Skříně nízká uzavřená\n- DTDL H1145 St10 Dub Bardolino – síla desek 18 mm\n- Panty s tlumením a dotahem\n- Úchytky kovové matné – rozteč šroubů 128 mm\n\n\n",1,"700 x 750 x 400",null,{"$f":"F27*H27","v":0}]
[null,308,"A12",null,"Skříně šatní uzavřená\n- DTDL H1145 St10 Dub Bardolino – síla desek 18 mm\n- Panty s tlumením a dotahem\n- Úchytky kovové matné – rozteč šroubů 128 mm",1,"700 x 2000 x 400",null,{"$f":"F28*H28","v":0}]
[null,308,"A13",null,"Skříně nízká uzavřená\n- DTDL H1145 St10 Dub Bardolino – síla desek 18 mm\n- Panty s tlumením a dotahem\n- Úchytky kovové matné – rozteč šroubů 128 mm\n\n\n",3,"800 x 750 x 400",null,{"$f":"F29*H29","v":0}]
[null,308,"B2",null,"Věšáková stěna\n- DTDL H1145 St10 Dub Bardolino – síla desek 18 mm\n- Kovové dvojháčky matné",1,"600 x 2000 ",null,{"$f":"F30*H30","v":0}]
[null,308,"S5P",null,"Rohový stůl pravý\n- DTDL H1145 St10 Dub Bardolino – síla horních desek 36 mm\n- Kovová noha rektifikační matná\n",1,"2000/2400 x 750 x 800",null,{"$f":"F31*H31","v":0}]
[null,308,"S6",null,"Stůl\n- DTDL H1145 St10 Dub Bardolino – síla horních desek 36 mm\n- Kovová noha rektifikační matná\n",1,"1200 x 750 x 800",null,{"$f":"F32*H32","v":0}]
[null,"309/310","A1",null,"Skříně na šanony uzamykatelná\n- DTDL H1145 St10 Dub Bardolino – síla desek 18 mm\n- Panty s tlumením a dotahem\n- Úchytky kovové matné – rozteč šroubů 128 mm\n- Nábytkový zámek – stejný klíč\n\n",8,"800 x 2000 x 400 ",null,{"$f":"F33*H33","v":0}]
[null,"309/310","A6",null,"Mobilní skříň na kopírku\n- DTDL H1145 St10 Dub Bardolino – síla desek 18 mm\n- Kolečka s brzdou\n- Panty s tlumením a dotahem\n- Úchytky kovové matné – rozteč šroubů 128 mm",2,"500 x 750 x 500",null,{"$f":"F34*H34","v":0}]
[null,"309/310","A7",null,"Mobilní uzamykatelný kontejner\n- DTDL H1145 St10 Dub Bardolino – síla desek 18 mm\n- Kolečka s brzdou\n- Systémové zásuvky kovové\n- Úchytky kovové matné – rozteč šroubů 128 mm",4,"430 x 650 x 500",null,{"$f":"F35*H35","v":0}]
[null,"309/310","A14",null,"Skříně nízká uzavřená\n- DTDL H1145 St10 Dub Bardolino – síla desek 18 mm\n- Panty s tlumením a dotahem\n- Úchytky kovové matné – rozteč šroubů 128 mm",2,"700 x 1000 x 400",null,{"$f":"F36*H36","v":0}]
[null,"309/310","A15",null,"Skříně šatní uzavřená\n- DTDL H1145 St10 Dub Bardolino – síla desek 18 mm\n- Panty s tlumením a dotahem\n- Úchytky kovové matné – rozteč šroubů 128 mm",2,"700 x 2000 x 400",null,{"$f":"F37*H37","v":0}]
[null,"309/310","A16",null,"Pult 2/3 uzavřený\n- DTDL H1145 St10 Dub Bardolino – síla desek 18 mm\n- Panty s tlumením a dotahem\n- Úchytky kovové matné – rozteč šroubů 128 mm",2,"1300 x 1100 x 500",null,{"$f":"F38*H38","v":0}]
[null,"309/310","S1P",null,"Rohový stůl pravý\n- DTDL H1145 St10 Dub Bardolino – síla horních desek 36 mm\n- Kovová noha rektifikační matná\n",1,"1400/2800 x 750 x 800",null,{"$f":"F39*H39","v":0}]
[null,"309/310","S1L",null,"Rohový stůl levý\n- DTDL H1145 St10 Dub Bardolino – síla horních desek 36 mm\n- Kovová noha rektifikační matná\n",1,"1400/2800 x 750 x 800",null,{"$f":"F40*H40","v":0}]
[null,501,"A1",null,"Skříně na šanony uzamykatelná\n- DTDL H1145 St10 Dub Bardolino – síla desek 18 mm\n- Panty s tlumením a dotahem\n- Úchytky kovové matné – rozteč šroubů 128 mm\n- Nábytkový zámek – stejný klíč\n\n",4,"800 x 2000 x 400 ",null,{"$f":"F41*H41","v":0}]
[null,501,"A4.1",null,"Police otevřená zavěšená\n- DTDL H1145 St10 Dub Bardolino – síla desek 18 mm",2,"2500 x 300 x 300",null,{"$f":"F42*H42","v":0}]
[null,501,"A7",null,"Mobilní uzamykatelný kontejner\n- DTDL H1145 St10 Dub Bardolino – síla desek 18 mm\n- Kolečka s brzdou\n- Systémové zásuvky kovové\n- Úchytky kovové matné – rozteč šroubů 128 mm",4,"430 x 650 x 500",null,{"$f":"F43*H43","v":0}]
[null,501,"A13",null,"Skříně nízká uzavřená\n- DTDL H1145 St10 Dub Bardolino – síla desek 18 mm\n- Panty s tlumením a dotahem\n- Úchytky kovové matné – rozteč šroubů 128 mm\n\n\n",1,"800 x 750 x 400",null,{"$f":"F44*H44","v":0}]
[null,501,"A13.1",null,"Skříně nízká uzavřená\n- DTDL H1145 St10 Dub Bardolino – síla desek 18 mm\n- Panty s tlumením a dotahem\n- Úchytky kovové matné – rozteč šroubů 128 mm\n\n\n",1,"500 x 750 x 400",null,{"$f":"F45*H45","v":0}]
[null,501,"A17",null,"Skříně šatní uzavřená\n- DTDL H1145 St10 Dub Bardolino – síla desek 18 mm\n- Panty s tlumením a dotahem\n- Úchytky kovové matné – rozteč šroubů 128 mm",1,"600 x 2000 x 400",null,{"$f":"F46*H46","v":0}]
[null,501,"S6",null,"Stůl\n- DTDL H1145 St10 Dub Bardolino – síla horních desek 36 mm\n- Kovová noha rektifikační matná\n",1,"1200 x 750 x 800",null,{"$f":"F47*H47","v":0}]
[null,501,"S7P",null,"Rohový stůl pravý\n- DTDL H1145 St10 Dub Bardolino – síla horních desek 36 mm\n- Kovová noha rektifikační matná\n",1,"2000/2800 x 750 x 800",null,{"$f":"F48*H48","v":0}]
[null,501,"S8",null,"Stůl\n- DTDL H1145 St10 Dub Bardolino – síla horních desek 36 mm\n- Kovová noha rektifikační matná\n",1,"480 x 750 x 420",null,{"$f":"F49*H49","v":0}]
[null,504,"A1",null,"Skříně na šanony uzamykatelná\n- DTDL H1145 St10 Dub Bardolino – síla desek 18 mm\n- Panty s tlumením a dotahem\n- Úchytky kovové matné – rozteč šroubů 128 mm\n- Nábytkový zámek – stejný klíč\n\n",5,"800 x 2000 x 400 ",null,{"$f":"F50*H50","v":0}]
[null,504,"A4.1",null,"Police otevřená zavěšená\n- DTDL H1145 St10 Dub Bardolino – síla desek 18 mm",2,"2500 x 300 x 300",null,{"$f":"F51*H51","v":0}]
[null,504,"A6",null,"Mobilní skříň na kopírku\n- DTDL H1145 St10 Dub Bardolino – síla desek 18 mm\n- Kolečka s brzdou\n- Panty s tlumením a dotahem\n- Úchytky kovové matné – rozteč šroubů 128 mm",1,"500 x 750 x 500",null,{"$f":"F52*H52","v":0}]
[null,504,"A7",null,"Mobilní uzamykatelný kontejner\n- DTDL H1145 St10 Dub Bardolino – síla desek 18 mm\n- Kolečka s brzdou\n- Systémové zásuvky kovové\n- Úchytky kovové matné – rozteč šroubů 128 mm",2,"430 x 650 x 500",null,{"$f":"F53*H53","v":0}]
[null,504,"A13",null,"Skříně nízká uzavřená\n- DTDL H1145 St10 Dub Bardolino – síla desek 18 mm\n- Panty s tlumením a dotahem\n- Úchytky kovové matné – rozteč šroubů 128 mm\n\n\n",1,"800 x 750 x 400",null,{"$f":"F54*H54","v":0}]
[null,504,"A17",null,"Skříně šatní uzavřená\n- DTDL H1145 St10 Dub Bardolino – síla desek 18 mm\n- Panty s tlumením a dotahem\n- Úchytky kovové matné – rozteč šroubů 128 mm",1,"600 x 2000 x 400",null,{"$f":"F55*H55","v":0}]
[null,504,"A18 ",null,"Skříně otevřená\n- DTDL H1145 St10 Dub Bardolino – síla desek 18 mm\n",1,"585 x 2000 x 400",null,{"$f":"F56*H56","v":0}]
[null,504,"S1P",null,"Rohový stůl pravý\n- DTDL H1145 St10 Dub Bardolino – síla horních desek 36 mm\n- Kovová noha rektifikační matná\n",1,"1400/2800 x 750 x 800",null,{"$f":"F57*H57","v":0}]
[null,504,"S1L",null,"Rohový stůl levý\n- DTDL H1145 St10 Dub Bardolino – síla horních desek 36 mm\n- Kovová noha rektifikační matná\n",1,"1400/2800 x 750 x 800",null,{"$f":"F58*H58","v":0}]
[null,505,"A1",null,"Skříně na šanony uzamykatelná\n- DTDL H1145 St10 Dub Bardolino – síla desek 18 mm\n- Panty s tlumením a dotahem\n- Úchytky kovové matné – rozteč šroubů 128 mm\n- Nábytkový zámek – stejný klíč\n\n",5,"800 x 2000 x 400 ",null,{"$f":"F59*H59","v":0}]
[null,505,"A4.1",null,"Police otevřená zavěšená\n- DTDL H1145 St10 Dub Bardolino – síla desek 18 mm",2,"2500 x 300 x 300",null,{"$f":"F60*H60","v":0}]
[null,505,"A6",null,"Mobilní skříň na kopírku\n- DTDL H1145 St10 Dub Bardolino – síla desek 18 mm\n- Kolečka s brzdou\n- Panty s tlumením a dotahem\n- Úchytky kovové matné – rozteč šroubů 128 mm",1,"500 x 750 x 500",null,{"$f":"F61*H61","v":0}]
[null,505,"A7",null,"Mobilní uzamykatelný kontejner\n- DTDL H1145 St10 Dub Bardolino – síla desek 18 mm\n- Kolečka s brzdou\n- Systémové zásuvky kovové\n- Úchytky kovové matné – rozteč šroubů 128 mm",2,"430 x 650 x 500",null,{"$f":"F62*H62","v":0}]
[null,505,"A13",null,"Skříně nízká uzavřená\n- DTDL H1145 St10 Dub Bardolino – síla desek 18 mm\n- Panty s tlumením a dotahem\n- Úchytky kovové matné – rozteč šroubů 128 mm\n\n\n",2,"800 x 750 x 400",null,{"$f":"F63*H63","v":0}]
[null,505,"A18.1",null,"Skříně otevřená\n- DTDL H1145 St10 Dub Bardolino – síla desek 18 mm\n",1,"314 x 2000 x 400",null,{"$f":"F64*H64","v":0}]
[null,505,"B2",null,"Věšáková stěna\n- DTDL H1145 St10 Dub Bardolino – síla desek 18 mm\n- Kovové dvojháčky matné",1,"500 x 2000",null,{"$f":"F65*H65","v":0}]
[null,505,"S1P",null,"Rohový stůl pravý\n- DTDL H1145 St10 Dub Bardolino – síla horních desek 36 mm\n- Kovová noha rektifikační matná\n",1,"1400/2800 x 750 x 800",null,{"$f":"F66*H66","v":0}]
[null,505,"S1L",null,"Rohový stůl levý\n- DTDL H1145 St10 Dub Bardolino – síla horních desek 36 mm\n- Kovová noha rektifikační matná\n",1,"1400/2800 x 750 x 800",null,{"$f":"F67*H67","v":0}]
[null,506,"A1",null,"Skříně na šanony uzamykatelná\n- DTDL H1145 St10 Dub Bardolino – síla desek 18 mm\n- Panty s tlumením a dotahem\n- Úchytky kovové matné – rozteč šroubů 128 mm\n- Nábytkový zámek – stejný klíč\n\n",4,"800 x 2000 x 400 ",null,{"$f":"F68*H68","v":0}]
[null,506,"A4.1",null,"Police otevřená zavěšená\n- DTDL H1145 St10 Dub Bardolino – síla desek 18 mm",2,"2500 x 300 x 300",null,{"$f":"F69*H69","v":0}]
[null,506,"A6",null,"Mobilní skříň na kopírku\n- DTDL H1145 St10 Dub Bardolino – síla desek 18 mm\n- Kolečka s brzdou\n- Panty s tlumením a dotahem\n- Úchytky kovové matné – rozteč šroubů 128 mm",1,"500 x 750 x 500",null,{"$f":"F70*H70","v":0}]
[null,506,"A7",null,"Mobilní uzamykatelný kontejner\n- DTDL H1145 St10 Dub Bardolino – síla desek 18 mm\n- Kolečka s brzdou\n- Systémové zásuvky kovové\n- Úchytky kovové matné – rozteč šroubů 128 mm",2,"430 x 650 x 500",null,{"$f":"F71*H71","v":0}]
[null,506,"A19",null,"Skříně šatní uzavřená\n- DTDL H1145 St10 Dub Bardolino – síla desek 18 mm\n- Panty s tlumením a dotahem\n- Úchytky kovové matné – rozteč šroubů 128 mm",1,"800 x 2000 x 550",null,{"$f":"F72*H72","v":0}]
[null,506,"A20",null,"Pult 2/3 uzavřený\n- DTDL H1145 St10 Dub Bardolino – síla desek 18 mm\n- Panty s tlumením a dotahem\n- Úchytky kovové matné – rozteč šroubů 128 mm",1,"1200 x 1100 x 500",null,{"$f":"F73*H73","v":0}]
[null,506,"S1P",null,"Rohový stůl pravý\n- DTDL H1145 St10 Dub Bardolino – síla horních desek 36 mm\n- Kovová noha rektifikační matná\n",1,"1400/2800 x 750 x 800",null,{"$f":"F74*H74","v":0}]
[null,506,"S1L",null,"Rohový stůl levý\n- DTDL H1145 St10 Dub Bardolino – síla horních desek 36 mm\n- Kovová noha rektifikační matná\n",1,"1400/2800 x 750 x 800",null,{"$f":"F75*H75","v":0}]
[null,507,"A1",null,"Skříně na šanony uzamykatelná\n- DTDL H1145 St10 Dub Bardolino – síla desek 18 mm\n- Panty s tlumením a dotahem\n- Úchytky kovové matné – rozteč šroubů 128 mm\n- Nábytkový zámek – stejný klíč\n\n",4,"800 x 2000 x 400 ",null,{"$f":"F76*H76","v":0}]
[null,507,"A4.1",null,"Police otevřená zavěšená\n- DTDL H1145 St10 Dub Bardolino – síla desek 18 mm",2,"2500 x 300 x 300",null,{"$f":"F77*H77","v":0}]
[null,507,"A6",null,"Mobilní skříň na kopírku\n- DTDL H1145 St10 Dub Bardolino – síla desek 18 mm\n- Kolečka s brzdou\n- Panty s tlumením a dotahem\n- Úchytky kovové matné – rozteč šroubů 128 mm",1,"500 x 750 x 500",null,{"$f":"F78*H78","v":0}]
[null,507,"A7",null,"Mobilní uzamykatelný kontejner\n- DTDL H1145 St10 Dub Bardolino – síla desek 18 mm\n- Kolečka s brzdou\n- Systémové zásuvky kovové\n- Úchytky kovové matné – rozteč šroubů 128 mm",2,"430 x 650 x 500",null,{"$f":"F79*H79","v":0}]
[null,507,"A17.1",null,"Skříně šatní uzavřená\n- DTDL H1145 St10 Dub Bardolino – síla desek 18 mm\n- Panty s tlumením a dotahem\n- Úchytky kovové matné – rozteč šroubů 128 mm",1,"800 x 2000 x 400 ",null,{"$f":"F80*H80","v":0}]
[null,507,"S1P",null,"Rohový stůl pravý\n- DTDL H1145 St10 Dub Bardolino – síla horních desek 36 mm\n- Kovová noha rektifikační matná\n",1,"1400/2800 x 750 x 800",null,{"$f":"F81*H81","v":0}]
[null,507,"S1L",null,"Rohový stůl levý\n- DTDL H1145 St10 Dub Bardolino – síla horních desek 36 mm\n- Kovová noha rektifikační matná\n",1,"1400/2800 x 750 x 800",null,{"$f":"F82*H82","v":0}]
[null,508,"A1",null,"Skříně na šanony uzamykatelná\n- DTDL H1145 St10 Dub Bardolino – síla desek 18 mm\n- Panty s tlumením a dotahem\n- Úchytky kovové matné – rozteč šroubů 128 mm\n- Nábytkový zámek – stejný klíč\n\n",5,"800 x 2000 x 400 ",null,{"$f":"F83*H83","v":0}]
[null,508,"A4.1",null,"Police otevřená zavěšená\n- DTDL H1145 St10 Dub Bardolino – síla desek 18 mm",2,"2500 x 300 x 300",null,{"$f":"F84*H84","v":0}]
[null,508,"A6",null,"Mobilní skříň na kopírku\n- DTDL H1145 St10 Dub Bardolino – síla desek 18 mm\n- Kolečka s brzdou\n- Panty s tlumením a dotahem\n- Úchytky kovové matné – rozteč šroubů 128 mm",1,"500 x 750 x 500",null,{"$f":"F85*H85","v":0}]
[null,508,"A7",null,"Mobilní uzamykatelný kontejner\n- DTDL H1145 St10 Dub Bardolino – síla desek 18 mm\n- Kolečka s brzdou\n- Systémové zásuvky kovové\n- Úchytky kovové matné – rozteč šroubů 128 mm",2,"430 x 650 x 500",null,{"$f":"F86*H86","v":0}]
[null,508,"A17.1",null,"Skříně šatní uzavřená\n- DTDL H1145 St10 Dub Bardolino – síla desek 18 mm\n- Panty s tlumením a dotahem\n- Úchytky kovové matné – rozteč šroubů 128 mm",1,"570 x 2000 x 400",null,{"$f":"F87*H87","v":0}]
[null,508,"A18.2",null,"Skříně otevřená\n- DTDL H1145 St10 Dub Bardolino – síla desek 18 mm\n",1,"320 x 2000 x 400",null,{"$f":"F88*H88","v":0}]
[null,508,"A21",null,"Pult otevřený\n- DTDL H1145 St10 Dub Bardolino – síla desek 18 mm",1,"1000 x 1100 x 500",null,{"$f":"F89*H89","v":0}]
[null,508,"B1",null,"Věšáková stěna\n- DTDL H1145 St10 Dub Bardolino – síla desek 18 mm\n- Kovové dvojháčky matné",1,"800 x 2000",null,{"$f":"F90*H90","v":0}]
[null,508,"S1P",null,"Rohový stůl pravý\n- DTDL H1145 St10 Dub Bardolino – síla horních desek 36 mm\n- Kovová noha rektifikační matná\n",1,"1400/2800 x 750 x 800",null,{"$f":"F91*H91","v":0}]
[null,508,"S1L",null,"Rohový stůl levý\n- DTDL H1145 St10 Dub Bardolino – síla horních desek 36 mm\n- Kovová noha rektifikační matná\n",1,"1400/2800 x 750 x 800",null,{"$f":"F92*H92","v":0}]
["CELKOVÁ CENA NÁBYTKU ",null,null,null,null,null,null,null,{"$f":"SUM(I5:I92)","v":0}]